[Event "Fagernes GM Swiss 2020"]
[Site "Fagernes"]
[Date "2020.10.09"]
[Round "7.13"]
[White "Shehzad, Shazil"]
[Black "Nilsen, Tobias Lang"]
[Result "0-1"]
[ECO "C00"]
[WhiteElo "2188"]
[BlackElo "2146"]
[Annotator "ChessBase"]
[PlyCount "60"]
[EventDate "2020.10.04"]
[EventType "swiss"]
[EventCountry "NOR"]
[SourceTitle "playchess.com"]
[Source "ChessBase"]
[SourceQuality "1"]
[TimeControl "40/6000+30:2400+30"]

1. e4 {[%emt 0:00:00]} e6 {[%emt 0:00:00]} 2. d3 {[%emt 0:00:39]} d5 {[%emt 0:00:00]} 3. Qe2 {[%emt 0:00:15]} Nf6 {[%emt 0:00:00]} 4. Nf3 {[%emt 0:00:10]} Be7 {[%emt 0:00:04]} 5. g3 {[%emt 0:00:06]} c5 {[%emt 0:00:08]} 6. Bg2 {[%emt 0:00:05]} Nc6 {[%emt 0:00:07]} 7. O-O {[%emt 0:00:14]} O-O {[%emt 0:00:07]} 8. e5 {[%emt 0:00:12]} Nd7 {[%emt 0:00:07]} 9. c4 {[%emt 0:00:08]} b5 {[%emt 0:00:21]} 10. cxd5 {[%emt 0:06:02]} exd5 {[%emt 0:00:16]} 11. d4 {[%emt 0:01:09]} cxd4 {[%emt 0:04:15]} 12. Rd1 {[%emt 0:03:49]} Qb6 {[%emt 0:03:55]} 13. e6 {[%emt 0:01:33]} Nf6 {[%emt 0:08:59]} 14. exf7+ {[%emt 0:00:25]} Rxf7 {[%emt 0:00:06]} 15. Ne5 {[%emt 0:02:52]} Nxe5 {[%emt 0:00:28]} 16. Qxe5 {[%emt 0:00:11]} Bc5 {[%emt 0:10:35]} 17. Rf1 {[%emt 0:09:53]} Bg4 {[%emt 0:03:57]} 18. f3 {[%emt 0:02:44]} Re8 {[%emt 0:03:00]} 19. Qg5 {[%emt 0:00:42]} h6 {[%emt 0:00:21]} 20. Qg6 {[%emt 0:04:07]} Bh5 {[%emt 0:07:37]} 21. Qd3 {[%emt 0:01:41]} Nd7 {[%emt 0:00:06]} 22. b4 {[%emt 0:02:25]} Bxb4 {[%emt 0:00:49]} 23. Qb3 {[%emt 0:04:09]} Bc5 {[%emt 0:00:43]} 24. Nd2 {[%emt 0:05:55]} Bg6 {[%emt 0:08:01]} 25. Qxd5 {[%emt 0:01:36]} Nf6 {[%emt 0:00:06]} 26. Qb3 {[%emt 0:00:11]} Bc2 {[%emt 0:00:00]} 27. Qb2 {[%emt 0:13:06]} d3+ {[%emt 0:00:00]} 28. Kh1 {[%emt 0:00:06]} Bd4 {[%emt 0:00:00]} 29. Qa3 {[%emt 0:01:12]} b4 {[%emt 0:00:07]} 30. Nc4 {[%emt 0:00:12]} bxa3 {[%emt 0:00:05]} 0-1

[Event "Fagernes GM Swiss 2020"]
[Site "Fagernes"]
[Date "2020.10.09"]
[Round "7.14"]
[White "Tenold, Andreas"]
[Black "Torngren, Gustav"]
[Result "1/2-1/2"]
[ECO "E83"]
[WhiteElo "1935"]
[BlackElo "2185"]
[Annotator "ChessBase"]
[PlyCount "100"]
[EventDate "2020.10.04"]
[EventType "swiss"]
[EventCountry "NOR"]
[SourceTitle "playchess.com"]
[Source "ChessBase"]
[SourceQuality "1"]
[TimeControl "40/6000+30:2400+30"]

1. d4 {[%emt 0:00:00]} Nf6 {[%emt 0:03:24]} 2. c4 {[%emt 0:00:00]} g6 {[%emt 0:00:05]} 3. f3 {[%emt 0:00:00]} Bg7 {[%emt 0:00:47]} 4. e4 {[%emt 0:00:00]} d6 {[%emt 0:00:09]} 5. Nc3 {[%emt 0:00:05]} O-O {[%emt 0:00:23]} 6. Nge2 {[%emt 0:00:37]} Nc6 {[%emt 0:00:34]} 7. Be3 {[%emt 0:00:22]} a6 {[%emt 0:00:35]} 8. Qd2 {[%emt 0:00:28]} Na5 {[%emt 0:01:22]} 9. Nc1 {[%emt 0:03:57]} Nd7 {[%emt 0:00:25]} 10. Be2 {[%emt 0:22:37]} c5 {[%emt 0:01:08]} 11. d5 {[%emt 0:03:36]} Ne5 {[%emt 0:10:44]} 12. b3 {[%emt 0:01:00]} e6 {[%emt 0:00:26]} 13. Bg5 {[%emt 0:05:29]} Qe8 {[%emt 0:30:24]} 14. Bh6 {[%emt 0:08:13]} Bxh6 {[%emt 0:02:41]} 15. Qxh6 {[%emt 0:00:10]} f5 {[%emt 0:00:21]} 16. f4 {[%emt 0:21:43]} Nf7 {[%emt 0:06:36]} 17. Qh4 {[%emt 0:01:52]} Qd8 {[%emt 0:02:25]} 18. Qxd8 {[%emt 0:01:55]} Rxd8 {[%emt 0:01:10]} 19. exf5 {[%emt 0:04:48]} gxf5 {[%emt 0:04:29]} 20. a3 {[%emt 0:03:48]} exd5 {[%emt 0:04:13]} 21. Nxd5 {[%emt 0:00:17]} Nc6 {[%emt 0:00:17]} 22. Bd3 {[%emt 0:04:51]} Nd4 {[%emt 0:01:16]} 23. Ne2 {[%emt 0:04:54]} Nxb3 {[%emt 0:06:57]} 24. Rb1 {[%emt 0:00:08]} Na5 {[%emt 0:00:05]} 25. O-O {[%emt 0:06:49]} Rb8 {[%emt 0:02:49]} 26. Ng3 {[%emt 0:02:08]} Be6 {[%emt 0:02:07]} 27. Rbe1 {[%emt 0:03:02]} Bxd5 {[%emt 0:00:30]} 28. cxd5 {[%emt 0:00:01]} b5 {[%emt 0:04:01]} 29. Nxf5 {[%emt 0:01:29]} c4 {[%emt 0:01:07]} 30. Ne7+ {[%emt 0:01:08]} Kh8 {[%emt 0:01:30]} 31. Bc2 {[%emt 0:00:49]} b4 {[%emt 0:06:11]} 32. Rf3 {[%emt 0:02:20]} b3 {[%emt 0:00:30]} 33. Bxh7 {[%emt 0:00:19]} Kxh7 {[%emt 0:00:16]} 34. Rh3+ {[%emt 0:00:05]} Kg7 {[%emt 0:00:52]} 35. Rg3+ {[%emt 0:01:18]} Kh7 {[%emt 0:00:06]} 36. Rh3+ {[%emt 0:01:40]} Nh6 {[%emt 0:06:17]} 37. Re6 {[%emt 0:02:55]} b2 {[%emt 0:00:18]} 38. Rhxh6+ {[%emt 0:00:16]} Kg7 {[%emt 0:00:17]} 39. Nf5+ {[%emt 0:00:21]} Kf8 {[%emt 0:01:02]} 40. Rhf6+ {[%emt 0:01:41]} Kg8 {[%emt 0:00:01]} 41. Rg6+ {[%emt 0:41:22]} Kh8 {[%emt 0:41:31]} 42. Rh6+ {[%emt 0:00:27]} Kg8 {[%emt 0:00:03]} 43. Reg6+ {[%emt 0:01:34]} Kf8 {[%emt 0:00:19]} 44. Rf6+ {[%emt 0:00:34]} Kg8 {[%emt 0:00:35]} 45. Ne7+ {[%emt 0:00:34]} Kg7 {[%emt 0:00:02]} 46. Rhg6+ {[%emt 0:00:43]} Kh8 {[%emt 0:00:05]} 47. Rh6+ {[%emt 0:00:20]} Kg7 {[%emt 0:00:03]} 48. Rhg6+ {[%emt 0:00:37]} Kh8 {[%emt 0:00:02]} 49. Rh6+ {[%emt 0:00:05]} Kg7 {[%emt 0:13:00]} 50. Rfg6+ {[%emt 0:01:33]} Kf8 {[%emt 0:00:30]} 1/2-1/2

[Event "Fagernes GM Swiss 2020"]
[Site "Fagernes"]
[Date "2020.10.09"]
[Round "7.15"]
[White "Kvaloy, Aksel Bu"]
[Black "Eliseev, Sergey"]
[Result "1-0"]
[ECO "B90"]
[WhiteElo "2174"]
[BlackElo "2025"]
[Annotator "ChessBase"]
[PlyCount "85"]
[EventDate "2020.10.04"]
[EventType "swiss"]
[EventCountry "NOR"]
[SourceTitle "playchess.com"]
[Source "ChessBase"]
[SourceQuality "1"]
[TimeControl "40/6000+30:2400+30"]

1. e4 {[%emt 0:00:00]} c5 {[%emt 0:00:00]} 2. Nf3 {[%emt 0:00:00]} d6 {[%emt 0:00:00]} 3. d4 {[%emt 0:00:00]} Nf6 {[%emt 0:00:00]} 4. Nc3 {[%emt 0:00:00]} cxd4 {[%emt 0:00:00]} 5. Nxd4 {[%emt 0:00:01]} a6 {[%emt 0:00:09]} 6. Be3 {[%emt 0:00:15]} Ng4 {[%emt 0:00:10]} 7. Bc1 {[%emt 0:00:47]} Nf6 {[%emt 0:00:05]} 8. h3 {[%emt 0:04:10]} e5 {[%emt 0:00:09]} 9. Nb3 {[%emt 0:00:08]} Be6 {[%emt 0:00:38]} 10. f4 {[%emt 0:05:02]} exf4 {[%emt 0:00:05]} 11. Bxf4 {[%emt 0:00:14]} Nc6 {[%emt 0:00:19]} 12. Qe2 {[%emt 0:00:15]} Be7 {[%emt 0:00:36]} 13. O-O-O {[%emt 0:01:32]} Nd7 {[%emt 0:00:11]} 14. Bxd6 {[%emt 0:08:55]} Bxd6 {[%emt 0:40:12]} 15. Rxd6 {[%emt 0:00:36]} Qg5+ {[%emt 0:12:38]} 16. Qd2 {[%emt 0:02:29]} Qe5 {[%emt 0:00:38]} 17. Be2 {[%emt 0:02:14]} Ke7 {[%emt 0:19:03]} 18. Rd1 {[%emt 0:03:08]} Nf6 {[%emt 0:07:39]} 19. Nd4 {[%emt 0:08:31]} Nxd4 {[%emt 0:10:19]} 20. Rxd4 {[%emt 0:00:20]} b5 {[%emt 0:03:56]} 21. Nd5+ {[%emt 0:02:37]} Bxd5 {[%emt 0:00:37]} 22. exd5 {[%emt 0:00:32]} Qd6 {[%emt 0:00:54]} 23. Bf3 {[%emt 0:06:03]} Rhe8 {[%emt 0:01:32]} 24. Re1+ {[%emt 0:08:51]} Kf8 {[%emt 0:00:12]} 25. Rxe8+ {[%emt 0:01:28]} Nxe8 {[%emt 0:04:09]} 26. Qf4 {[%emt 0:02:15]} Qxf4+ {[%emt 0:01:36]} 27. Rxf4 {[%emt 0:00:02]} Rc8 {[%emt 0:01:10]} 28. Kd2 {[%emt 0:02:19]} Ke7 {[%emt 0:01:50]} 29. Kd3 {[%emt 0:02:07]} Nf6 {[%emt 0:04:50]} 30. b3 {[%emt 0:01:33]} Kd6 {[%emt 0:00:36]} 31. c4 {[%emt 0:01:18]} Nd7 {[%emt 0:00:14]} 32. Kd4 {[%emt 0:01:43]} Ne5 {[%emt 0:00:22]} 33. Be2 {[%emt 0:01:09]} bxc4 {[%emt 0:00:24]} 34. bxc4 {[%emt 0:00:15]} Rc5 {[%emt 0:00:09]} 35. Rf1 {[%emt 0:01:59]} Ra5 {[%emt 0:00:08]} 36. Rb1 {[%emt 0:04:43]} f6 {[%emt 0:01:57]} 37. Rb7 {[%emt 0:01:29]} Nd7 {[%emt 0:00:24]} 38. Bg4 {[%emt 0:01:16]} Nc5 {[%emt 0:00:36]} 39. Rb6+ {[%emt 0:00:41]} Ke7 {[%emt 0:00:05]} 40. Rc6 {[%emt 0:00:30]} Na4 {[%emt 0:00:17]} 41. d6+ {[%emt 0:40:36]} Kf7 {[%emt 0:02:05]} 42. d7 {[%emt 0:00:00]} f5 {[%emt 0:00:28]} 43. d8=Q {[%emt 0:39:27]} 1-0

[Event "Fagernes GM Swiss 2020"]
[Site "Fagernes"]
[Date "2020.10.09"]
[Round "7.16"]
[White "Holleland, Sigve"]
[Black "Lund, Gunnar"]
[Result "0-1"]
[ECO "C84"]
[WhiteElo "2133"]
[BlackElo "2302"]
[Annotator "ChessBase"]
[PlyCount "80"]
[EventDate "2020.10.04"]
[EventType "swiss"]
[EventCountry "NOR"]
[SourceTitle "playchess.com"]
[Source "ChessBase"]
[SourceQuality "1"]
[TimeControl "40/6000+30:2400+30"]

1. e4 {[%emt 0:01:11]} e5 {[%emt 0:00:00]} 2. Nf3 {[%emt 0:00:16]} Nc6 {[%emt 0:00:53]} 3. Bb5 {[%emt 0:00:23]} a6 {[%emt 0:00:06]} 4. Ba4 {[%emt 0:00:03]} Nf6 {[%emt 0:00:08]} 5. d3 {[%emt 0:00:33]} d6 {[%emt 0:00:41]} 6. Nbd2 {[%emt 0:00:47]} Be7 {[%emt 0:01:33]} 7. Nf1 {[%emt 0:01:07]} b5 {[%emt 0:03:04]} 8. Bb3 {[%emt 0:01:37]} Na5 {[%emt 0:00:31]} 9. Ng3 {[%emt 0:02:08]} O-O {[%emt 0:04:09]} 10. c3 {[%emt 0:01:36]} Nxb3 {[%emt 0:00:03]} 11. axb3 {[%emt 0:00:09]} Re8 {[%emt 0:07:56]} 12. O-O {[%emt 0:02:58]} Bf8 {[%emt 0:06:40]} 13. d4 {[%emt 0:06:33]} exd4 {[%emt 0:05:56]} 14. Qxd4 {[%emt 0:01:32]} c5 {[%emt 0:02:18]} 15. Qd3 {[%emt 0:01:04]} Nxe4 {[%emt 0:14:13]} 16. Nxe4 {[%emt 0:00:06]} Bf5 {[%emt 0:00:05]} 17. Re1 {[%emt 0:05:46]} d5 {[%emt 0:00:30]} 18. Bg5 {[%emt 0:02:08]} Rxe4 {[%emt 0:08:56]} 19. Qxe4 {[%emt 0:02:02]} dxe4 {[%emt 0:05:33]} 20. Bxd8 {[%emt 0:00:07]} Rxd8 {[%emt 0:00:01]} 21. Ne5 {[%emt 0:07:50]} Rd2 {[%emt 0:06:19]} 22. Red1 {[%emt 0:06:19]} Rxb2 {[%emt 0:00:10]} 23. g4 {[%emt 0:00:14]} Be6 {[%emt 0:00:19]} 24. Rxa6 {[%emt 0:00:53]} g5 {[%emt 0:03:18]} 25. Rd8 {[%emt 0:19:17]} Kg7 {[%emt 0:01:53]} 26. Re8 {[%emt 0:12:05]} Bxb3 {[%emt 0:05:54]} 27. Nd7 {[%emt 0:04:38]} b4 {[%emt 0:04:40]} 28. cxb4 {[%emt 0:01:41]} Rb1+ {[%emt 0:01:39]} 29. Kg2 {[%emt 0:00:11]} Bc4 {[%emt 0:00:44]} 30. Rf6 {[%emt 0:09:27]} Bf1+ {[%emt 0:05:14]} 31. Kg3 {[%emt 0:00:04]} Bd6+ {[%emt 0:00:20]} 32. f4 {[%emt 0:00:19]} Bxf4+ {[%emt 0:01:33]} 33. Rxf4 {[%emt 0:02:52]} gxf4+ {[%emt 0:00:32]} 34. Kxf4 {[%emt 0:00:05]} Bb5 {[%emt 0:03:06]} 35. Re7 {[%emt 0:01:26]} e3 {[%emt 0:02:30]} 36. Ne5 {[%emt 0:04:39]} e2 {[%emt 0:01:15]} 37. Nf3 {[%emt 0:00:04]} Rxb4+ {[%emt 0:00:25]} 38. Ke3 {[%emt 0:00:56]} Kf6 {[%emt 0:02:06]} 39. Rc7 {[%emt 0:00:15]} Rb3+ {[%emt 0:00:08]} 40. Kf2 {[%emt 0:00:34]} Rxf3+ {[%emt 0:00:11]} 0-1

[Event "Fagernes GM Swiss 2020"]
[Site "Fagernes"]
[Date "2020.10.09"]
[Round "7.17"]
[White "Krivenko, Dion"]
[Black "Fossan, Aleksander"]
[Result "1-0"]
[ECO "B27"]
[WhiteElo "2047"]
[BlackElo "2171"]
[Annotator "ChessBase"]
[PlyCount "114"]
[EventDate "2020.10.04"]
[EventType "swiss"]
[EventCountry "NOR"]
[SourceTitle "playchess.com"]
[Source "ChessBase"]
[SourceQuality "1"]
[TimeControl "40/6000+30:2400+30"]

1. e4 {[%emt 0:00:00]} c5 {[%emt 0:00:00]} 2. Nf3 {[%emt 0:00:00]} g6 {[%emt 0:00:00]} 3. d4 {[%emt 0:00:07]} cxd4 {[%emt 0:00:00]} 4. Qxd4 {[%emt 0:00:06]} Nf6 {[%emt 0:00:00]} 5. e5 {[%emt 0:00:09]} Nc6 {[%emt 0:00:00]} 6. Qa4 {[%emt 0:00:07]} Nd5 {[%emt 0:00:03]} 7. Qe4 {[%emt 0:00:07]} Ndb4 {[%emt 0:02:12]} 8. Bb5 {[%emt 0:05:54]} a6 {[%emt 0:00:32]} 9. Bxc6 {[%emt 0:01:17]} Nxc6 {[%emt 0:00:07]} 10. Nc3 {[%emt 0:01:00]} d6 {[%emt 0:06:03]} 11. exd6 {[%emt 0:03:27]} Qxd6 {[%emt 0:01:33]} 12. Bf4 {[%emt 0:05:17]} Qe6 {[%emt 0:04:16]} 13. O-O-O {[%emt 0:10:10]} Qxe4 {[%emt 0:15:59]} 14. Nxe4 {[%emt 0:00:11]} Bg7 {[%emt 0:00:12]} 15. Nc5 {[%emt 0:11:20]} O-O {[%emt 0:02:32]} 16. h3 {[%emt 0:10:08]} e5 {[%emt 0:10:07]} 17. Be3 {[%emt 0:01:33]} Re8 {[%emt 0:05:53]} 18. Nd2 {[%emt 0:08:09]} b6 {[%emt 0:19:27]} 19. Nce4 {[%emt 0:04:04]} Be6 {[%emt 0:08:03]} 20. Bg5 {[%emt 0:11:51]} f5 {[%emt 0:02:11]} 21. Nf6+ {[%emt 0:09:22]} Bxf6 {[%emt 0:00:01]} 22. Bxf6 {[%emt 0:00:01]} Kf7 {[%emt 0:01:11]} 23. Bg5 {[%emt 0:03:10]} Rac8 {[%emt 0:03:34]} 24. Nf3 {[%emt 0:04:26]} e4 {[%emt 0:07:24]} 25. Nd4 {[%emt 0:00:16]} Nb4 {[%emt 0:00:44]} 26. Nxe6 {[%emt 0:06:29]} Kxe6 {[%emt 0:00:19]} 27. Rd2 {[%emt 0:01:18]} Rc6 {[%emt 0:09:24]} 28. a3 {[%emt 0:01:57]} Nd3+ {[%emt 0:00:08]} 29. Kb1 {[%emt 0:00:02]} Ne5 {[%emt 0:00:21]} 30. Rhd1 {[%emt 0:02:01]} Nf7 {[%emt 0:03:18]} 31. Be3 {[%emt 0:00:12]} Rec8 {[%emt 0:01:35]} 32. Re1 {[%emt 0:07:18]} g5 {[%emt 0:02:27]} 33. g3 {[%emt 0:00:15]} Kf6 {[%emt 0:00:32]} 34. Red1 {[%emt 0:00:29]} Ke6 {[%emt 0:00:39]} 35. Rh1 {[%emt 0:01:15]} Ne5 {[%emt 0:00:41]} 36. Rhd1 {[%emt 0:01:21]} h6 {[%emt 0:04:40]} 37. Rd8 {[%emt 0:02:40]} b5 {[%emt 0:00:27]} 38. Rxc8 {[%emt 0:00:15]} Rxc8 {[%emt 0:00:01]} 39. b3 {[%emt 0:01:00]} Rf8 {[%emt 0:00:52]} 40. Bc5 {[%emt 0:00:05]} Rc8 {[%emt 0:00:52]} 41. Rd6+ {[%emt 0:06:13]} Kf7 {[%emt 0:00:21]} 42. Bd4 {[%emt 0:00:59]} Nf3 {[%emt 0:05:41]} 43. Bb2 {[%emt 0:10:16]} Rc5 {[%emt 0:09:50]} 44. b4 {[%emt 0:04:17]} Rc4 {[%emt 0:00:01]} 45. Rxh6 {[%emt 0:02:57]} Ne1 {[%emt 0:00:54]} 46. Rf6+ {[%emt 0:01:17]} Ke7 {[%emt 0:00:26]} 47. Rxf5 {[%emt 0:00:42]} Kd6 {[%emt 0:01:03]} 48. h4 {[%emt 0:10:48]} gxh4 {[%emt 0:00:21]} 49. gxh4 {[%emt 0:00:00]} Rxc2 {[%emt 0:00:34]} 50. h5 {[%emt 0:00:29]} Rc7 {[%emt 0:02:45]} 51. h6 {[%emt 0:00:40]} Rh7 {[%emt 0:01:25]} 52. Bg7 {[%emt 0:00:13]} Nd3 {[%emt 0:00:16]} 53. Kc2 {[%emt 0:00:52]} Ke6 {[%emt 0:24:33]} 54. Rf6+ {[%emt 0:00:38]} Kd5 {[%emt 0:00:00]} 55. Kd2 {[%emt 0:00:40]} Kc4 {[%emt 0:00:00]} 56. Ke3 {[%emt 0:01:08]} Kb3 {[%emt 0:00:00]} 57. Kxe4 {[%emt 0:00:36]} Nb2 {[%emt 0:00:00]} 1-0

[Event "Fagernes GM Swiss 2020"]
[Site "Fagernes"]
[Date "2020.10.09"]
[Round "7.18"]
[White "Brodtkorb, Lars Johan"]
[Black "Mansoor, Afras"]
[Result "0-1"]
[ECO "E81"]
[WhiteElo "2166"]
[BlackElo "2117"]
[Annotator "ChessBase"]
[PlyCount "56"]
[EventDate "2020.10.04"]
[EventType "swiss"]
[EventCountry "NOR"]
[SourceTitle "playchess.com"]
[Source "ChessBase"]
[SourceQuality "1"]
[TimeControl "40/6000+30:2400+30"]

1. d4 {[%emt 0:13:09]} Nf6 {[%emt 0:00:00]} 2. c4 {[%emt 0:00:08]} g6 {[%emt 0:00:00]} 3. f3 {[%emt 0:00:25]} Bg7 {[%emt 0:00:00]} 4. e4 {[%emt 0:00:07]} d6 {[%emt 0:00:00]} 5. Nc3 {[%emt 0:00:09]} O-O {[%emt 0:00:00]} 6. Be3 {[%emt 0:00:14]} a6 {[%emt 0:00:06]} 7. Qd2 {[%emt 0:00:32]} Nbd7 {[%emt 0:00:07]} 8. O-O-O {[%emt 0:00:36]} b5 {[%emt 0:03:33]} 9. e5 {[%emt 0:00:35]} b4 {[%emt 0:05:12]} 10. Na4 {[%emt 0:02:03]} Ne8 {[%emt 0:00:13]} 11. c5 {[%emt 0:01:34]} c6 {[%emt 0:25:48]} 12. f4 {[%emt 0:09:20]} Qa5 {[%emt 0:01:39]} 13. b3 {[%emt 0:20:28]} Nc7 {[%emt 0:01:20]} 14. Bc4 {[%emt 0:04:56]} Nd5 {[%emt 0:09:00]} 15. Ne2 {[%emt 0:01:48]} Rd8 {[%emt 0:01:40]} 16. h4 {[%emt 0:10:52]} Nf8 {[%emt 0:23:31]} 17. h5 {[%emt 0:04:02]} dxc5 {[%emt 0:11:26]} 18. hxg6 {[%emt 0:05:44]} hxg6 {[%emt 0:03:17]} 19. Rh4 {[%emt 0:13:19]} Be6 {[%emt 0:07:09]} 20. Rdh1 {[%emt 0:05:42]} Nxe3 {[%emt 0:07:24]} 21. Bxe6 {[%emt 0:03:18]} cxd4 {[%emt 0:04:42]} 22. Nxd4 {[%emt 0:02:51]} Nxe6 {[%emt 0:02:15]} 23. Qxe3 {[%emt 0:01:06]} Nxd4 {[%emt 0:01:12]} 24. Rh7 {[%emt 0:06:34]} f5 {[%emt 0:02:26]} 25. exf6 {[%emt 0:02:24]} Bxf6 {[%emt 0:00:00]} 26. g4 {[%emt 0:00:30]} Qb5 {[%emt 0:00:20]} 27. g5 {[%emt 0:00:30]} Qe2 {[%emt 0:00:28]} 28. Qxd4 {[%emt 0:00:32]} Bxd4 {[%emt 0:00:12]} 0-1

[Event "Fagernes GM Swiss 2020"]
[Site "Fagernes"]
[Date "2020.10.09"]
[Round "7.19"]
[White "Sorensen, Simen"]
[Black "Skaslien, Ingrid"]
[Result "1-0"]
[ECO "D36"]
[WhiteElo "2047"]
[BlackElo "1976"]
[Annotator "ChessBase"]
[PlyCount "67"]
[EventDate "2020.10.04"]
[EventType "swiss"]
[EventCountry "NOR"]
[SourceTitle "playchess.com"]
[Source "ChessBase"]
[SourceQuality "1"]
[TimeControl "40/6000+30:2400+30"]

1. d4 {[%emt 0:00:00]} Nf6 {[%emt 0:00:00]} 2. c4 {[%emt 0:00:08]} e6 {[%emt 0:00:00]} 3. Nf3 {[%emt 0:00:15]} d5 {[%emt 0:00:12]} 4. Nc3 {[%emt 0:00:21]} c6 {[%emt 0:00:15]} 5. Bg5 {[%emt 0:09:42]} h6 {[%emt 0:00:43]} 6. Bxf6 {[%emt 0:01:21]} Qxf6 {[%emt 0:00:59]} 7. e3 {[%emt 0:01:04]} Nd7 {[%emt 0:10:08]} 8. Qc2 {[%emt 0:14:49]} Bd6 {[%emt 0:12:52]} 9. cxd5 {[%emt 0:08:17]} exd5 {[%emt 0:00:50]} 10. Bd3 {[%emt 0:02:49]} O-O {[%emt 0:03:41]} 11. O-O {[%emt 0:02:45]} Qd8 {[%emt 0:02:33]} 12. Rab1 {[%emt 0:06:24]} Re8 {[%emt 0:15:53]} 13. b4 {[%emt 0:09:30]} a6 {[%emt 0:04:23]} 14. a4 {[%emt 0:01:20]} Nf6 {[%emt 0:00:49]} 15. b5 {[%emt 0:16:33]} axb5 {[%emt 0:00:53]} 16. axb5 {[%emt 0:00:09]} Bg4 {[%emt 0:00:23]} 17. Bf5 {[%emt 0:10:30]} Bxf3 {[%emt 0:15:31]} 18. gxf3 {[%emt 0:00:21]} Nh5 {[%emt 0:00:56]} 19. Ne2 {[%emt 0:04:18]} Qg5+ {[%emt 0:06:38]} 20. Ng3 {[%emt 0:01:49]} g6 {[%emt 0:10:11]} 21. f4 {[%emt 0:03:54]} Qf6 {[%emt 0:06:37]} 22. Nxh5 {[%emt 0:00:39]} gxh5 {[%emt 0:00:04]} 23. bxc6 {[%emt 0:00:40]} bxc6 {[%emt 0:02:01]} 24. Rb6 {[%emt 0:01:24]} Kh8 {[%emt 0:03:59]} 25. Rxc6 {[%emt 0:01:52]} Rg8+ {[%emt 0:02:37]} 26. Kh1 {[%emt 0:00:06]} Qg7 {[%emt 0:00:09]} 27. Bh3 {[%emt 0:00:51]} Be7 {[%emt 0:03:17]} 28. Qf5 {[%emt 0:02:47]} Ra2 {[%emt 0:02:48]} 29. Qxh5 {[%emt 0:00:31]} f6 {[%emt 0:01:33]} 30. Rcc1 {[%emt 0:00:49]} Ra5 {[%emt 0:02:01]} 31. Rg1 {[%emt 0:00:49]} Qf8 {[%emt 0:00:19]} 32. Rxg8+ {[%emt 0:00:18]} Kxg8 {[%emt 0:00:11]} 33. Rg1+ {[%emt 0:00:31]} Kh8 {[%emt 0:00:06]} 34. Be6 {[%emt 0:00:27]} 1-0

[Event "Fagernes GM Swiss 2020"]
[Site "Fagernes"]
[Date "2020.10.09"]
[Round "7.20"]
[White "Bentsen, Hakon"]
[Black "Nielsen, Andre"]
[Result "1/2-1/2"]
[ECO "C54"]
[WhiteElo "2120"]
[BlackElo "2218"]
[Annotator "ChessBase"]
[PlyCount "71"]
[EventDate "2020.10.04"]
[EventType "swiss"]
[EventCountry "NOR"]
[SourceTitle "playchess.com"]
[Source "ChessBase"]
[SourceQuality "1"]
[TimeControl "40/6000+30:2400+30"]

1. e4 {[%emt 0:00:00]} e5 {[%emt 0:00:00]} 2. Nf3 {[%emt 0:00:00]} Nc6 {[%emt 0:00:00]} 3. Bc4 {[%emt 0:00:00]} Nf6 {[%emt 0:00:33]} 4. d3 {[%emt 0:00:15]} Bc5 {[%emt 0:00:15]} 5. c3 {[%emt 0:00:15]} a6 {[%emt 0:00:49]} 6. a4 {[%emt 0:00:31]} d6 {[%emt 0:02:29]} 7. h3 {[%emt 0:02:03]} Ba7 {[%emt 0:02:00]} 8. O-O {[%emt 0:00:25]} h6 {[%emt 0:02:35]} 9. Na3 {[%emt 0:08:02]} Ne7 {[%emt 0:17:44]} 10. Nc2 {[%emt 0:01:00]} Ng6 {[%emt 0:00:49]} 11. Be3 {[%emt 0:04:29]} O-O {[%emt 0:08:44]} 12. Re1 {[%emt 0:16:36]} Bb8 {[%emt 0:24:05]} 13. Bc1 {[%emt 0:07:24]} c6 {[%emt 0:01:18]} 14. d4 {[%emt 0:08:07]} Nxe4 {[%emt 0:07:01]} 15. dxe5 {[%emt 0:00:45]} d5 {[%emt 0:05:35]} 16. Bd3 {[%emt 0:00:07]} f5 {[%emt 0:09:56]} 17. exf6 {[%emt 0:02:28]} Qxf6 {[%emt 0:00:11]} 18. Bxe4 {[%emt 0:03:53]} dxe4 {[%emt 0:00:08]} 19. Rxe4 {[%emt 0:00:08]} Bf5 {[%emt 0:01:01]} 20. Rd4 {[%emt 0:00:23]} c5 {[%emt 0:06:08]} 21. Rd5 {[%emt 0:01:45]} Be4 {[%emt 0:05:19]} 22. Ne3 {[%emt 0:12:41]} Bxd5 {[%emt 0:05:19]} 23. Nxd5 {[%emt 0:01:38]} Qd6 {[%emt 0:03:41]} 24. Be3 {[%emt 0:02:23]} Ne5 {[%emt 0:05:22]} 25. Nxe5 {[%emt 0:09:18]} Qxe5 {[%emt 0:00:07]} 26. Bxc5 {[%emt 0:00:10]} Qh2+ {[%emt 0:00:51]} 27. Kf1 {[%emt 0:00:04]} Re8 {[%emt 0:00:25]} 28. Ne7+ {[%emt 0:00:09]} Rxe7 {[%emt 0:00:58]} 29. Bxe7 {[%emt 0:00:13]} Qh1+ {[%emt 0:00:14]} 30. Ke2 {[%emt 0:00:06]} Qxg2 {[%emt 0:00:32]} 31. Qd8+ {[%emt 0:02:32]} Kh7 {[%emt 0:00:29]} 32. Qd3+ {[%emt 0:00:08]} Kh8 {[%emt 0:00:45]} 33. Qf3 {[%emt 0:03:55]} Qh2 {[%emt 0:00:32]} 34. Qf8+ {[%emt 0:08:16]} Kh7 {[%emt 0:00:06]} 35. Qf5+ {[%emt 0:00:03]} Kg8 {[%emt 0:00:43]} 36. Qf8+ {[%emt 0:16:33]} 1/2-1/2

[Event "Fagernes GM Swiss 2020"]
[Site "Fagernes"]
[Date "2020.10.09"]
[Round "7.21"]
[White "Fuglestein, Sander"]
[Black "Royset, Pal"]
[Result "1-0"]
[ECO "E11"]
[WhiteElo "2109"]
[BlackElo "2150"]
[Annotator "ChessBase"]
[PlyCount "71"]
[EventDate "2020.10.04"]
[EventType "swiss"]
[EventCountry "NOR"]
[SourceTitle "playchess.com"]
[Source "ChessBase"]
[SourceQuality "1"]
[TimeControl "40/6000+30:2400+30"]

1. d4 {[%emt 0:00:00]} Nf6 {[%emt 0:00:00]} 2. c4 {[%emt 0:00:00]} e6 {[%emt 0:00:11]} 3. g3 {[%emt 0:00:21]} Bb4+ {[%emt 0:00:56]} 4. Bd2 {[%emt 0:00:28]} Be7 {[%emt 0:00:18]} 5. Bg2 {[%emt 0:00:22]} d5 {[%emt 0:00:22]} 6. Nf3 {[%emt 0:00:04]} O-O {[%emt 0:00:45]} 7. O-O {[%emt 0:00:03]} Nbd7 {[%emt 0:01:02]} 8. Qc2 {[%emt 0:00:27]} c6 {[%emt 0:02:25]} 9. b3 {[%emt 0:00:31]} Ne4 {[%emt 0:01:34]} 10. Nc3 {[%emt 0:00:31]} f5 {[%emt 0:00:40]} 11. Be3 {[%emt 0:02:40]} Bd6 {[%emt 0:03:44]} 12. Nxe4 {[%emt 0:02:16]} fxe4 {[%emt 0:00:46]} 13. Ne1 {[%emt 0:03:07]} Nf6 {[%emt 0:08:01]} 14. f3 {[%emt 0:05:13]} exf3 {[%emt 0:02:43]} 15. Nxf3 {[%emt 0:01:47]} Bd7 {[%emt 0:04:27]} 16. Bg5 {[%emt 0:03:38]} h6 {[%emt 0:05:19]} 17. Bxf6 {[%emt 0:04:22]} Rxf6 {[%emt 0:02:49]} 18. e4 {[%emt 0:02:02]} Rf8 {[%emt 0:11:21]} 19. Kh1 {[%emt 0:05:01]} dxc4 {[%emt 0:08:41]} 20. Qxc4 {[%emt 0:06:43]} Qe8 {[%emt 0:02:08]} 21. a4 {[%emt 0:08:52]} a5 {[%emt 0:02:20]} 22. Qd3 {[%emt 0:03:57]} b5 {[%emt 0:03:24]} 23. e5 {[%emt 0:02:41]} Bb4 {[%emt 0:02:19]} 24. Nh4 {[%emt 0:02:30]} Rxf1+ {[%emt 0:04:39]} 25. Rxf1 {[%emt 0:01:07]} Be7 {[%emt 0:00:08]} 26. Ng6 {[%emt 0:13:06]} bxa4 {[%emt 0:05:24]} 27. bxa4 {[%emt 0:00:42]} Rb8 {[%emt 0:01:45]} 28. Be4 {[%emt 0:02:38]} c5 {[%emt 0:05:36]} 29. d5 {[%emt 0:10:58]} c4 {[%emt 0:04:37]} 30. Qxc4 {[%emt 0:05:43]} Rb4 {[%emt 0:01:23]} 31. Qd3 {[%emt 0:02:21]} Rxa4 {[%emt 0:06:57]} 32. d6 {[%emt 0:01:41]} Bd8 {[%emt 0:00:26]} 33. Rf8+ {[%emt 0:01:26]} Qxf8 {[%emt 0:00:15]} 34. Nxf8 {[%emt 0:00:10]} Kxf8 {[%emt 0:01:27]} 35. Qf3+ {[%emt 0:00:06]} Kg8 {[%emt 0:00:06]} 36. Bg6 {[%emt 0:00:16]} 1-0